fUST/lending_fUST_20240505
["ID","MTS","AMOUNT","RATE_DAILY","PERIOD"]
[857,1714909846796,-192.992055,0.00021915,2]
[924,1714909847517,-500.0,0.00021917,2]
[927,1714909847546,-445.98443996,0.00021917,2]
[928,1714909847556,-500.69858221,0.00021917,2]
[929,1714909847566,-510.72643131,0.00021917,2]
[932,1714910116972,5000.0,0.000212,13]
[934,1714910125361,5000.0,0.000212,13]
[935,1714910126212,661.79530218,0.0001589,2]
[936,1714910126239,88.20469782,0.0001589,2]
[937,1714910134145,4013.03373535,0.000212,13]
[938,1714910144097,1379.51370547,9.999e-05,2]
[943,1714910764654,187.5,0.0001589,2]
[326441651,1714910954185,-704.40397905,0.00019078,2]
[326441652,1714910954207,-405.80250936,0.00019178,2]
[326441653,1714910954229,-156.62173038,0.000197,2]
[326441749,1714911032457,-177.44355326,0.00019815,2]
[326441751,1714911032467,-161.643618,0.00020137,2]
[326441753,1714911032476,-160.52130256,0.00020312,2]
[326441755,1714911032485,-1335.4385131,0.00020411,2]
[326441757,1714911032494,-24900.0,0.00020411,2]
[326441759,1714911032503,-250.0,0.00020411,2]
[326441761,1714911032512,-480.0086355,0.00020411,2]
[326441763,1714911032521,-363.906778,0.00020411,2]
[326441765,1714911032530,-1183.9877573,0.00020575,2]
[326441766,1714911032539,-150.0,0.00020616,3]
[326441768,1714911032548,-150.0,0.00020734,3]
[326441770,1714911032557,-620.23498926,0.00020859,2]
[326441772,1714911032566,-346.86699552,0.00020999,2]
[326441774,1714911032575,-602.19881,0.00021,2]
[326441776,1714911032584,-14045.60222888,0.00021,2]
[326441778,1714911032594,-602.19882,0.00021025,2]
[326441780,1714911032603,-172.56782,0.00021043,2]
[326441782,1714911032612,-602.19882,0.0002105,2]
[326441784,1714911032621,-602.19882,0.00021075,2]
[326441786,1714911032631,-602.19882,0.000211,2]
[326441788,1714911032640,-170.420757,0.000211,2]
[326441790,1714911032650,-170.420757,0.000211,2]
[326441792,1714911032659,-151.0,0.000211,2]
[326441794,1714911032668,-151.0,0.000211,2]
[326441796,1714911032678,-151.0,0.000211,2]
[326441798,1714911032687,-260.482294,0.000211,2]
[326441800,1714911032697,-260.482294,0.000211,2]
[326441802,1714911032706,-602.19882,0.00021125,2]
[326441804,1714911032715,-602.19882,0.0002115,2]
[326441806,1714911032725,-602.19882,0.00021175,2]
[326441808,1714911032734,-260.482294,0.00021175,2]
[326441810,1714911032744,-260.482294,0.00021175,2]
[326441812,1714911032753,-291.49011,0.00021175,2]
[326441814,1714911032762,-291.49011,0.00021175,2]
[326441816,1714911032772,-151.0,0.00021175,2]
[326441818,1714911032781,-151.0,0.00021175,2]
[326441820,1714911032790,-21700.15678019,0.000212,2]
[326441822,1714911032799,-602.19882,0.000212,2]
[326441824,1714911032809,-178.425898,0.000212,2]
[326441826,1714911032819,-178.425898,0.000212,2]
[326441827,1714911032828,-186.222672,0.000212,2]
[326441828,1714911032838,-339.859291,0.000212,2]
[326441829,1714911032852,-339.859291,0.000212,2]
[326441830,1714911032861,-151.0,0.000212,2]
[326441831,1714911032871,-151.0,0.000212,2]
[326441832,1714911032880,-151.0,0.000212,2]
[326441833,1714911032891,-488.320836,0.000212,2]
[326441834,1714911032900,-488.320836,0.000212,2]
[326441835,1714911032909,-353.09625,0.000212,2]
[326441836,1714911032919,-353.09625,0.000212,2]
[326441837,1714911032928,-170.420757,0.000212,2]
[326441839,1714911032938,-353.09625,0.000212,2]
[326441841,1714911032947,-170.420757,0.000212,2]
[326441843,1714911032956,-353.09625,0.000212,2]
[326441845,1714911032966,-170.420757,0.000212,2]
[326441847,1714911032975,-170.420757,0.000212,2]
[326441849,1714911032984,-151.0,0.000212,2]
[326441851,1714911032994,-218.375632,0.000212,2]
[326441853,1714911033003,-151.0,0.000212,2]
[326441855,1714911033014,-151.0,0.000212,2]
[326441857,1714911033024,-151.0,0.000212,2]
[326441865,1714911033033,-151.0,0.000212,2]
[326441867,1714911033100,-260.482294,0.000212,2]
[326441869,1714911033109,-260.482294,0.000212,2]
[326441871,1714911033118,-260.482294,0.000212,2]
[326441873,1714911033127,-260.482294,0.000212,2]
[326441875,1714911033136,-260.482294,0.000212,2]
[326441877,1714911033145,-260.482294,0.000212,2]
[326441879,1714911033155,-260.482294,0.000212,2]
[326441881,1714911033164,-260.482294,0.000212,2]
[326441882,1714911033174,-291.49011,0.000212,2]
[326441884,1714911033183,-291.49011,0.000212,2]
[326441885,1714911033192,-291.49011,0.000212,2]
[326441886,1714911033201,-291.49011,0.000212,2]
[326441887,1714911033210,-291.49011,0.000212,2]
[326441888,1714911033219,-291.49011,0.000212,2]
[326441889,1714911033228,-291.49011,0.000212,2]
[326441890,1714911033237,-291.49011,0.000212,2]
[326441891,1714911033246,-151.0,0.000212,2]
[326441892,1714911033255,-151.0,0.000212,2]
[326441893,1714911033265,-151.0,0.000212,2]
[326441894,1714911033274,-151.0,0.000212,2]
[326441895,1714911033283,-151.0,0.000212,2]
[326441896,1714911033292,-151.0,0.000212,2]
[326441897,1714911033301,-151.0,0.000212,2]
[326441898,1714911033310,-151.0,0.000212,2]
[326441899,1714911033319,-602.19882,0.00021225,2]
[326441900,1714911033328,-170.420757,0.00021225,2]
[326441901,1714911033338,-170.420757,0.00021225,2]
[326441902,1714911033347,-151.0,0.00021225,2]
[326441903,1714911033357,-151.0,0.00021225,2]
[326441904,1714911033366,-602.19882,0.0002125,2]
[326441906,1714911033375,-260.482294,0.0002125,2]
[326441907,1714911033385,-260.482294,0.0002125,2]
[326441908,1714911033394,-291.49011,0.0002125,2]
[326441909,1714911033403,-291.49011,0.0002125,2]
[326441910,1714911033412,-151.0,0.0002125,2]
[326441911,1714911033421,-151.0,0.0002125,2]
[326441912,1714911033430,-602.19882,0.00021275,2]
[326441913,1714911033440,-249.872214,0.00021275,2]
[326441914,1714911033449,-151.0,0.00021275,2]
[326441915,1714911033458,-488.320836,0.00021275,2]
[326441916,1714911033467,-353.09625,0.00021275,2]
[326441917,1714911033476,-353.09625,0.00021275,2]
[326441918,1714911033485,-170.420757,0.00021275,2]
[326441919,1714911033494,-170.420757,0.00021275,2]
[326441920,1714911033503,-151.0,0.00021275,2]
[326441921,1714911033513,-232.456865,0.00021275,2]
[326441922,1714911033522,-260.482294,0.00021275,2]
[326441923,1714911033531,-260.482294,0.00021275,2]
[326441924,1714911033541,-291.49011,0.00021275,2]
[326441925,1714911033550,-291.49011,0.00021275,2]
[326441926,1714911033559,-151.0,0.00021275,2]
[326441927,1714911033568,-151.0,0.00021275,2]
[326441928,1714911033577,-340.56,0.0002129,3]
[326441929,1714911033587,-602.19882,0.000213,2]
[326441930,1714911033598,-178.425898,0.000213,2]
[326441931,1714911033607,-178.425898,0.000213,2]
[326441932,1714911033617,-339.859291,0.000213,2]
[326441933,1714911033626,-339.859291,0.000213,2]
[326441934,1714911033636,-151.0,0.000213,2]
[326441935,1714911033645,-488.320836,0.000213,2]
[326441936,1714911033655,-353.09625,0.000213,2]
[326441937,1714911033664,-353.09625,0.000213,2]
[326441938,1714911033674,-170.420757,0.000213,2]
[326441939,1714911033683,-170.420757,0.000213,2]
[326441940,1714911033692,-170.420757,0.000213,2]
[326441941,1714911033702,-170.420757,0.000213,2]
[326441942,1714911033712,-151.0,0.000213,2]
[326441943,1714911033721,-151.0,0.000213,2]
[326441944,1714911033731,-260.482294,0.000213,2]
[326441945,1714911033740,-260.482294,0.000213,2]
[326441946,1714911033749,-260.482294,0.000213,2]
[326441947,1714911033759,-260.482292,0.000213,2]
[326441948,1714911033768,-291.49011,0.000213,2]
[326441949,1714911033778,-291.49011,0.000213,2]
[326441950,1714911033787,-291.49011,0.000213,2]
[326441951,1714911033798,-291.49011,0.000213,2]
[326441952,1714911033808,-151.0,0.000213,2]
[326441953,1714911033818,-151.0,0.000213,2]
[326441954,1714911033827,-151.0,0.000213,2]
[326441955,1714911033836,-263.126938,0.000213,2]
[326441956,1714911033850,-602.19881,0.00021325,2]
[326441957,1714911033859,-291.49011,0.00021325,2]
[326441958,1714911033868,-291.49011,0.00021325,2]
[326441959,1714911033878,-151.0,0.00021325,2]
[326441960,1714911033888,-602.19882,0.0002135,2]
[326441961,1714911033897,-602.19882,0.00021375,2]
[326441962,1714911033907,-488.320836,0.00021375,2]
[326441963,1714911033916,-353.09625,0.00021375,2]
[326441964,1714911033927,-353.09625,0.00021375,2]
[326441965,1714911033936,-170.420757,0.00021375,2]
[326441966,1714911033945,-170.420757,0.00021375,2]
[326441967,1714911033955,-151.0,0.00021375,2]
[326441968,1714911033964,-602.19882,0.000214,2]
[326441969,1714911033974,-178.425898,0.000214,2]
[326441970,1714911033983,-178.425898,0.000214,2]
[326441971,1714911033992,-339.859291,0.000214,2]
[326441972,1714911034002,-339.859291,0.000214,2]
[326441973,1714911034011,-488.320836,0.000214,2]
[326441974,1714911034021,-353.09625,0.000214,2]
[326441975,1714911034030,-353.09625,0.000214,2]
[326441976,1714911034039,-170.420757,0.000214,2]
[326441977,1714911034048,-170.420757,0.000214,2]
[326441978,1714911034058,-170.420757,0.000214,2]
[326441979,1714911034067,-170.42076,0.000214,2]
[326441980,1714911034076,-151.0,0.000214,2]
[326441981,1714911034086,-151.0,0.000214,2]
[326441982,1714911034096,-602.19882,0.00021425,2]
[326441983,1714911034106,-178.425898,0.00021425,2]
[326441984,1714911034116,-178.425898,0.00021425,2]
[326441985,1714911034125,-339.859291,0.00021425,2]
[326441986,1714911034134,-339.859291,0.00021425,2]
[326441987,1714911034144,-488.320836,0.00021425,2]
[326441988,1714911034212,-488.320836,0.00021425,2]
[326441989,1714911034221,-353.09625,0.00021425,2]
[326441990,1714911034231,-353.09625,0.00021425,2]
[326441991,1714911034241,-353.09625,0.00021425,2]
[326441992,1714911034250,-353.09625,0.00021425,2]
[326441993,1714911034260,-602.19882,0.0002145,2]
[326441994,1714911034269,-602.19882,0.00021475,2]
[326441995,1714911034280,-178.425898,0.00021475,2]
[326441996,1714911034289,-178.425898,0.00021475,2]
[326441997,1714911034299,-339.859291,0.00021475,2]
[326441998,1714911034308,-339.859291,0.00021475,2]
[326441999,1714911034317,-488.320836,0.00021475,2]
[326442000,1714911034326,-488.320842,0.00021475,2]
[326442001,1714911034336,-353.09625,0.00021475,2]
[326442002,1714911034345,-353.09625,0.00021475,2]
[326442003,1714911034355,-353.09625,0.00021475,2]
[326442004,1714911034364,-353.09625,0.00021475,2]
[326442005,1714911034374,-602.19882,0.000215,2]
[326442006,1714911034383,-178.425898,0.000215,2]
[326442007,1714911034392,-178.425898,0.000215,2]
[326442008,1714911034402,-339.859291,0.000215,2]
[326442009,1714911034411,-339.859291,0.000215,2]
[326442010,1714911034420,-602.19882,0.00021525,2]
[326442011,1714911034430,-602.19882,0.0002155,2]
[326442012,1714911034440,-178.425898,0.0002155,2]
[326442013,1714911034449,-178.425898,0.0002155,2]
[326442014,1714911034458,-339.859291,0.0002155,2]
[326442015,1714911034467,-339.859291,0.0002155,2]
[326442016,1714911034477,-602.19882,0.00021575,2]
[326442017,1714911034486,-178.425898,0.00021575,2]
[326442018,1714911034495,-178.425898,0.00021575,2]
[326442019,1714911034505,-339.859291,0.00021575,2]
[326442020,1714911034514,-339.859291,0.00021575,2]
[326442021,1714911034525,-602.19882,0.000216,2]
[326442022,1714911034534,-602.19882,0.00021625,2]
[326442023,1714911034543,-602.19882,0.0002165,2]
[326442024,1714911034553,-178.425898,0.0002165,2]
[326442025,1714911034563,-178.425898,0.0002165,2]
[326442026,1714911034572,-339.859291,0.0002165,2]
[326442027,1714911034581,-339.859291,0.0002165,2]
[326442028,1714911034591,-602.19881,0.00021675,2]
[326442029,1714911034601,-178.425898,0.00021675,2]
[326442030,1714911034611,-178.425908,0.00021675,2]
[326442031,1714911034621,-339.859291,0.00021675,2]
[326442032,1714911034630,-339.859282,0.00021675,2]
[326442033,1714911034639,-1000.0,0.00021677,2]
[326442034,1714911034649,-9115.26287784,0.00021696,2]
[326442035,1714911035797,270.83341106,0.000195,2]
[326442036,1714911035817,9.58704569,0.000195,2]
[326442099,1714911218664,409.6003669,9.999e-05,2]
[326442100,1714911220011,187.5,0.0001589,2]
[326442101,1714911455158,500.0,0.000171,2]
[326442107,1714911763747,187.5,0.0001589,2]
[326442108,1714911907218,409.6003669,9.999e-05,2]
[326442109,1714912044151,-152.91807517,0.000189,2]
[326442110,1714912146118,-191.8087392,0.000189,2]
[326442111,1714912146137,-181.953389,0.00019628,2]
[326442112,1714912146156,-156.62173039,0.000197,2]
[326442138,1714912232290,-165.144884,0.00020137,2]
[326442139,1714912232299,-2990.0586517,0.00020411,2]
[326442140,1714912232309,-181.953389,0.00020411,2]
[326442141,1714912232318,-150.0,0.00020616,3]
[326442142,1714912232327,-150.0,0.00020734,3]
[326442144,1714912232336,-156.62173039,0.00020977,2]
[326442146,1714912232345,-602.19399,0.00021,2]
[326442148,1714912232354,-991.15199934,0.00021076,2]
[326442150,1714912232363,-602.19399,0.00021077,2]
[326442152,1714912232372,-602.194,0.00021154,2]
[326442154,1714912232381,-602.19399,0.00021231,2]
[326442156,1714912232390,-602.194,0.00021308,2]
[326442158,1714912232399,-495.03,0.00021377,2]
[326442170,1714912232503,-602.19399,0.00021385,2]
[326442172,1714912232513,-602.194,0.00021462,2]
[326442174,1714912232522,-602.19399,0.00021538,2]
[326442176,1714912232531,-602.194,0.00021615,2]
[326442178,1714912232540,-1000.0,0.00021653,2]
[326442180,1714912232549,-1000.0,0.00021666,2]
[326442181,1714912232559,-602.19399,0.00021692,2]
[326442182,1714912232568,-91141.08969634,0.00021696,2]
[326442183,1714912232577,-1000.0,0.00021756,2]
[326442184,1714912232586,-602.194,0.00021769,2]
[326442185,1714912232596,-160.52130255,0.00021815,2]
[326442186,1714912232605,-2000.0,0.00021817,2]
[326442187,1714912232614,-432.13482478,0.00021817,2]
[326442188,1714912232623,-602.19399,0.00021846,2]
[326442189,1714912232633,-174.34930764,0.00021885,2]
[326442190,1714912232642,-4942.92290667,0.00021888,2]
[326442191,1714912232651,-5000.0,0.000219,2]
[326442192,1714912232661,-620.01174946,0.00021902,2]
[326442193,1714912232671,-24376.73674911,0.0002191,2]
[326442212,1714912238951,237.84864523,9.999e-05,2]
[326442213,1714912238972,181.43297314,9.999e-05,2]
[326442214,1714912238992,150.0,9.999e-05,2]
[326442215,1714912239013,206.66461643,9.999e-05,2]
[326442216,1714912239033,257.74940967,9.999e-05,2]
[326442217,1714912239070,345.818061,9.999e-05,2]
[326442257,1714912246426,-229.81787625,0.0001981,2]
[326442258,1714912246436,-79.92310855,0.00020616,3]
[326442268,1714912324399,187.5,0.0001589,2]
[326442270,1714912478815,512.03039536,9.999e-05,2]
[326442271,1714912483299,512.03039536,9.999e-05,2]
[326442272,1714912506304,150.69860279,0.00024394,120]
[326442273,1714912530806,7042.3,0.000171,2]
[326442274,1714912556322,10000.0,0.00025192,60]
[326442281,1714912806314,187.5,0.0001589,2]
[326442289,1714913008694,150.71364408,0.0002428,120]
[326442301,1714913253702,154.70605849,9.999e-05,2]
[326442302,1714913306513,1379.51370547,9.999e-05,2]
[326442303,1714913308090,2085.83423536,9.999e-05,2]
[326442304,1714913328093,1523.51008325,9.999e-05,2]
[326442305,1714913338639,721.875,0.0001589,2]
[326442306,1714913383949,249.41542814,9.999e-05,2]
[326442307,1714913383970,150.0,9.999e-05,2]
[326442308,1714913383991,252.82598548,9.999e-05,2]
[326442309,1714913384021,163.74256738,9.999e-05,2]
[326442310,1714913407452,512.03039536,9.999e-05,2]
[326442323,1714913432493,-158.9744088,0.0002,2]
[326442324,1714913432503,-150.63495793,0.0002,2]
[326442325,1714913432512,-3881.24957602,0.0002,2]
[326442326,1714913432521,-150.0,0.00020616,3]
[326442327,1714913432530,-150.0,0.00020734,3]
[326442328,1714913432540,-45961.56958068,0.00021,2]
[326442339,1714913440760,-3103.10000002,0.00021,2]
[326442387,1714913601447,597.8946637,0.000138,2]
[326442388,1714913601644,146.33721143,0.000138,2]
[326442389,1714913785316,160.546875,0.0001589,2]
[326442400,1714914324142,160.546875,0.0001589,2]
[326442401,1714914431173,-268.45242311,0.000189,2]
[326442402,1714914432199,11938.51507802,9.999e-05,2]
[326442411,1714914548197,-139.41951817,0.000189,2]
[326442412,1714914548217,-405.80250936,0.00019178,2]
[326442448,1714914632730,-4458.20674087,0.00019999,2]
[326442579,1714914638769,-1251.78323974,0.00019999,2]
[326442693,1714914641869,-922.51839607,0.00019999,2]
[326442695,1714914641879,-1196.1619,0.0002,2]
[326442697,1714914641888,-151.85804764,0.0002,2]
[326442699,1714914641898,-154.70605849,0.0002,2]
[326442701,1714914641907,-150.0,0.00020616,3]
[326442703,1714914641916,-935.3304203,0.00021,2]
[326442705,1714914641925,-180.930889,0.00021,2]
[326442707,1714914641934,-3000.0,0.00021,2]
[326442709,1714914641944,-602.194,0.00021,2]
[326442711,1714914641954,-252.82598548,0.00021151,2]
[326442712,1714914641963,-311.7632616,0.000214,2]
[326442714,1714914641972,-453.98452505,0.00021417,2]
[326442715,1714914641981,-500.0,0.00021417,2]
[326442717,1714914641998,-500.0,0.00021417,2]
[326442718,1714914642007,-500.0,0.00021417,2]
[326442719,1714914642016,-500.0,0.00021417,2]
[326442720,1714914642026,-500.0,0.00021417,2]
[326442723,1714914642036,-991.15199934,0.00021567,2]
[326442724,1714914642046,-150.331,0.00021568,2]
[326442726,1714914642055,-151.94811846,0.0002181,2]
[326442727,1714914642065,-2000.0,0.00021816,2]
[326442728,1714914642076,-624.46538353,0.00021847,2]
[326442729,1714914642085,-200.77685809,0.00021909,2]
[326442730,1714914642107,-4799.22314191,0.00021909,2]
[326442731,1714914642116,-4581.89037879,0.0002191,2]
[326442785,1714914780209,154.70605849,9.999e-05,2]
[326442786,1714914814565,1578.01513402,9.999e-05,2]
[326442787,1714914814675,815.983981,9.999e-05,2]
[326442788,1714914825618,2152.34442277,9.999e-05,2]
[326442789,1714914926279,291.9748613,9.999e-05,2]
[326442792,1714915042352,160.546875,0.0001589,2]
[326442793,1714915053991,39.453125,9.999e-05,2]
[326442794,1714915054012,115.25293349,9.999e-05,2]
[326442795,1714915084494,84.74706651,9.999e-05,2]
[326442796,1714915084514,69.95899198,9.999e-05,2]
[326442797,1714915085281,130.04100802,9.999e-05,2]
[326442798,1714915085303,200.0,9.999e-05,2]
[326442799,1714915085323,200.0,9.999e-05,2]
[326442800,1714915085343,200.0,9.999e-05,2]
[326442801,1714915085363,200.0,9.999e-05,2]
[326442802,1714915085384,200.0,9.999e-05,2]
[326442803,1714915085404,200.0,9.999e-05,2]
[326442804,1714915085423,200.0,9.999e-05,2]
[326442805,1714915085442,200.0,9.999e-05,2]
[326442806,1714915085462,200.0,9.999e-05,2]
[326442807,1714915085481,200.0,9.999e-05,2]
[326442808,1714915085501,200.0,9.999e-05,2]
[326442809,1714915085520,200.0,9.999e-05,2]
[326442810,1714915085540,200.0,9.999e-05,2]
[326442811,1714915085560,200.0,9.999e-05,2]
[326442812,1714915085579,150.0,9.999e-05,2]
[326442813,1714915085601,14234.2022711,9.999e-05,2]
[326442814,1714915085626,1899.43941749,9.999e-05,2]
[326442815,1714915090919,236.03459787,9.998e-05,2]
[326442816,1714915094800,220.72598464,9.999e-05,2]
[326442817,1714915094841,1158.78772083,9.999e-05,2]
[326442818,1714915103243,19206.70060303,9.999e-05,2]
[326442819,1714915441760,150.0,9.999e-05,2]
[326442820,1714915441791,2063.32176849,9.999e-05,2]
[326442821,1714915496334,-1455.0,0.00019706,2]
[326442822,1714915530170,-157.29122729,0.00019706,2]
[326442823,1714915539445,150.0,0.00025192,60]
[326442824,1714915549102,-356.59227792,0.00019705,2]
[326442825,1714915569090,154.69061876,9.999e-05,2]
[326442826,1714915585064,154.69061876,9.999e-05,2]
[326442827,1714915600968,154.69061876,9.999e-05,2]
[326442828,1714915623090,154.69061876,9.999e-05,2]
[326442829,1714915632109,-676.27487264,0.000189,2]
[326442830,1714915632130,-160.534356,0.00019178,2]
[326442831,1714915632152,-6275.91609876,0.00019705,2]
[326442832,1714915632172,-6632.50837668,0.00019705,2]
[326442833,1714915632198,-6632.50837668,0.00019705,2]
[326442834,1714915632218,-6632.50837668,0.00019705,2]
[326442835,1714915632239,-6632.50837668,0.00019705,2]
[326442836,1714915632261,-6632.50837668,0.00019705,2]
[326442837,1714915632283,-1162.11709461,0.00019706,2]
[326442838,1714915632304,-704.40397905,0.0001971,2]
[326442839,1714915632325,-156.62173038,0.000198,2]
[326442840,1714915632344,-5465.83337635,0.0002,2]
[326442841,1714915632365,-607.34579,0.0002,2]
[326442842,1714915632388,-150.0,0.00020616,3]
[326442843,1714915632408,-607.34579,0.00020667,2]
[326442844,1714915632429,-435.71835825,0.00020913,2]
[326442845,1714915632449,-242.63120508,0.00020913,2]
[326442846,1714915632469,-546.59423132,0.00020913,2]
[326442847,1714915632490,-500.0,0.00020913,2]
[326442848,1714915632510,-417.68578369,0.00020913,2]
[326442849,1714915632531,-2005.69479647,0.00020913,2]
[326442850,1714915632552,-428.7186166,0.00021141,2]
[326442851,1714915632572,-607.34579,0.00021333,2]
[326442852,1714915632594,-493.0,0.00021568,2]
[326442853,1714915632615,-9115.26287784,0.00021695,2]
[326442854,1714915632634,-1000.0,0.00021716,2]
[326442855,1714915632655,-500.0,0.00021761,2]
[326442856,1714915632678,-1000.0,0.00021771,2]
[326442857,1714915632700,-669.30947634,0.00021793,2]
[326442858,1714915632720,-2943.44241115,0.000218,2]
[326442859,1714915632742,-171.66313012,0.00021813,2]
[326442860,1714915632761,-500.0,0.00021816,2]
[326442861,1714915632782,-1000.0,0.0002184,2]
[326442862,1714915632803,-290.17,0.00021871,2]
[326442863,1714915632825,-1000.0,0.00021875,2]
[326442864,1714915632847,-1013.20022546,0.00021883,2]
[326442865,1714915632866,-307.0,0.000219,2]
[326442866,1714915632886,-588.0,0.000219,2]
[326442867,1714915632906,-1177.8774,0.000219,2]
[326442868,1714915632926,-1177.8774,0.000219,2]
[326442869,1714915632947,-442.108732,0.000219,2]
[326442870,1714915632969,-170.027121,0.000219,2]
[326442871,1714915632989,-3750.18561379,0.0002191,2]
[326442872,1714915633008,-196.29816724,0.00021912,2]
[326442873,1714915633028,-154.69061876,0.00021912,2]
[326442874,1714915633048,-319.04491487,0.00021913,2]
[326442875,1714915633068,-464.10244725,0.00021913,2]
[326442876,1714915633088,-500.0,0.00021913,2]
[326442877,1714915633108,-500.0,0.00021913,2]
[326442878,1714915633133,-500.0,0.00021913,2]
[326442879,1714915633153,-324.81881441,0.00021913,2]
[326442880,1714915633174,-282.33128121,0.00021913,2]
[326442881,1714915633194,-500.0,0.00021913,2]
[326442882,1714915633216,-217.59155835,0.00021913,2]
[326442883,1714915633236,-285.44606875,0.00021914,2]
[326442884,1714915633257,-551.42384778,0.00021914,2]
[326442885,1714915633278,-253.63699231,0.00021914,2]
[326442886,1714915633299,-177.09883548,0.00021914,2]
[326442887,1714915633319,-334.2518863,0.00021914,2]
[326442888,1714915633339,-21518.15251925,0.00021914,2]
[326442889,1714915633360,-197.54699833,0.00021914,2]
[326442890,1714915633468,-266.32276827,0.00021914,2]
[326442891,1714915633489,-154.89431468,0.00021914,2]
[326442892,1714915633511,-694.3812447,0.00021914,2]
[326442893,1714915633532,-306.5821817,0.00021914,2]
[326442894,1714915633552,-551.33684407,0.00021914,2]
[326442895,1714915633572,-172.39015127,0.00021914,2]
[326442896,1714915633593,-897.09394367,0.00021914,2]
[326442897,1714915633613,-234.62235358,0.00021914,2]
[326442898,1714915633633,-190.63606633,0.00021914,2]
[326442899,1714915633653,-154.8858108,0.00021914,2]
[326442900,1714915633673,-1494.47645183,0.00021914,2]
[326442901,1714915633694,-154.829647,0.00021914,2]
[326442902,1714915633713,-154.94304364,0.00021914,2]
[326442903,1714915633733,-268.92910488,0.00021914,2]
[326442904,1714915633753,-10230.48079373,0.00021914,2]
[326442905,1714915635107,-1033.50116262,0.0002114,2]
[326442906,1714915635227,-253.8762046,0.0002114,2]
[326442907,1714915638975,155.09236009,9.999e-05,2]
[326442908,1714915739988,160.546875,0.0001589,2]
[326443097,1714915838045,-3964.5471896,0.0002018,2]
[326443099,1714915838055,-150.0,0.00020616,3]
[326443101,1714915838065,-150.0,0.00020734,3]
[326443103,1714915838074,-1304.65590449,0.00020757,2]
[326443105,1714915838083,-940.0203099,0.00020758,2]
[326443460,1714915843157,-1078.0869273,0.00020758,2]
[326443461,1714915843167,-248.939979,0.00020914,2]
[326443463,1714915843177,-1000.0,0.00021132,2]
[326443465,1714915843186,-500.0,0.00021761,2]
[326443467,1714915843202,-1929.18926219,0.00021912,2]
[326443469,1714915843212,-2242.64771926,0.00021913,2]
[326443471,1714915843222,-155.28598771,0.00021913,2]
[326443473,1714915843234,-1999.98730657,0.00021913,2]
[326443475,1714915843244,-1945.95734082,0.00021914,2]
[326443477,1714915843254,-237.22520122,0.00021914,2]
[326443479,1714915843264,-154.84509312,0.00021914,2]
[326443481,1714915843274,-151.0,0.00021914,2]
[326443483,1714915843283,-176.969053,0.00021914,2]
[326443485,1714915843293,-1208.81243552,0.00021914,2]
[326443487,1714915843303,-570.718501,0.00021914,2]
[326443489,1714915843312,-570.718501,0.00021914,2]
[326443491,1714915843322,-570.718501,0.00021914,2]
[326443493,1714915843332,-570.718501,0.00021914,2]
[326443495,1714915843341,-570.718501,0.00021914,2]
[326443497,1714915843350,-570.718501,0.00021914,2]
[326443499,1714915843359,-570.718501,0.00021914,2]
[326443501,1714915843369,-570.718501,0.00021914,2]
[326443503,1714915843378,-234.345776,0.00021914,2]
[326443505,1714915843388,-191.562795,0.00021914,2]
[326443507,1714915843397,-191.562795,0.00021914,2]
[326443509,1714915843407,-191.562795,0.00021914,2]